{"text_format":"1","workbook":"xlsx","n_sheets":1,"sheets":["Aktywa i pasywa+saldo"],"not_rendered":{"charts":1,"images":1,"macros":1,"external_links":1,"defined_names":4,"comments":0,"pivot_tables":0},"unopened":[],"bounds":{"document_bytes":16777216,"sheet_cells":100000,"rows_first":2000,"rows_last":500,"rows_between":2000,"halvings":0,"cell_chars":16384,"cell_head_chars":4096},"cells_cut":0,"cells_raw":0,"read":"whole","date_system":"1900"}

{"sheet":"Aktywa i pasywa+saldo","index":0,"n_rows":33,"n_cols":12,"rows_kept":33,"cut":false,"hidden":false,"merged":[[18,3,18,11],[19,1,19,3],[1,1,1,3],[2,1,2,2],[3,1,7,2],[8,1,9,2],[10,1,12,2],[13,1,16,2],[0,0,0,26],[2,0,16,0],[1,8,1,9],[1,10,1,11],[30,6,30,7],[30,8,30,9],[30,10,30,11],[30,2,32,3],[19,4,19,5],[19,6,19,7],[19,8,19,9],[19,10,19,11],[30,4,30,5],[19,0,27,0],[1,6,1,7],[1,4,1,5]]}
[]
[null,"ROK 2023",null,null,"Kwartał I",null,"Kwartał II",null,"Kwartał III",null,"Kwartał IV"]
["Majątek","Segment majątku",null,"Rodzaj majątku","Przekazano z salda","Wartość","Przekazano z salda ","Wartość ","Przekazano z salda  ","Wartość  ","Przekazano z salda    ","Wartość   "]
[null,"Żelazna rezerwa"]
[]
[]
[]
[]
[null,"Oszczędności na…"]
[]
[null,"Majątek bytowy"]
[]
[]
[null,"Majątek inwestycyjny"]
[]
[]
[]
[null,null,null,"Suma majątku",{"$f":"SUBTOTAL(109,Tabela792[Przekazano z salda])","v":0},{"$f":"SUBTOTAL(109,Tabela792[Wartość])","v":0},{"$f":"SUBTOTAL(109,Tabela792[[Przekazano z salda ]])","v":0},{"$f":"SUBTOTAL(109,Tabela792[[Wartość ]])","v":0},{"$f":"SUBTOTAL(109,Tabela792[[Przekazano z salda  ]])","v":0},{"$f":"SUBTOTAL(109,Tabela792[[Wartość  ]])","v":0},{"$f":"SUBTOTAL(109,Tabela792[[Przekazano z salda    ]])","v":0},{"$f":"SUBTOTAL(109,Tabela792[[Wartość   ]])","v":0}]
[]
["Zobowiązania","ROK 2023",null,null,"Kwartał I",null,"Kwartał II",null,"Kwartał III",null,"Kwartał IV"]
[null,"Wierzyciel/rata","RRSO","Oprocentowanie nominalne","Nadpłacono z salda","Pozostało do spłaty","Nadpłacono z salda ","Pozostało do spłaty ","Nadpłacono z salda  ","Pozostało do spłaty  ","Nadpłacono z salda   ","Pozostało do spłaty   "]
[]
[]
[]
[]
[]
[]
[]
[null,null,null,"Suma zobowiązań",{"$f":"SUBTOTAL(109,Tabela791275[Nadpłacono z salda])","v":0},{"$f":"SUBTOTAL(109,Tabela791275[Pozostało do spłaty])","v":0},{"$f":"SUBTOTAL(109,Tabela791275[[Nadpłacono z salda ]])","v":0},{"$f":"SUBTOTAL(109,Tabela791275[[Pozostało do spłaty ]])","v":0},{"$f":"SUBTOTAL(109,Tabela791275[[Nadpłacono z salda  ]])","v":0},{"$f":"SUBTOTAL(109,Tabela791275[[Pozostało do spłaty  ]])","v":0},{"$f":"SUBTOTAL(109,Tabela791275[[Nadpłacono z salda   ]])","v":0},{"$f":"SUBTOTAL(109,Tabela791275[[Pozostało do spłaty   ]])","v":0}]
[]
[null,null,"PODSUMOWANIE",null,"Kwartał I",null,"Kwartał II",null,"Kwartał III",null,"Kwartał IV"]
[null,null,null,null,"Przekazano + nadpłacono saldo","Majątek netto","Przekazano + nadpłacono saldo","Majątek netto","Przekazano + nadpłacono saldo","Majątek netto","Przekazano + nadpłacono saldo","Majątek netto"]
[null,null,null,null,{"$f":"Tabela792[[#Totals],[Przekazano z salda]]+Tabela791275[[#Totals],[Nadpłacono z salda]]","v":0},{"$f":"Tabela792[[#Totals],[Wartość]]-Tabela791275[[#Totals],[Pozostało do spłaty]]","v":0},{"$f":"Tabela792[[#Totals],[Przekazano z salda ]]+Tabela791275[[#Totals],[Nadpłacono z salda ]]","v":0},{"$f":"Tabela792[[#Totals],[Wartość ]]-Tabela791275[[#Totals],[Pozostało do spłaty ]]","v":0},{"$f":"Tabela792[[#Totals],[Przekazano z salda  ]]+Tabela791275[[#Totals],[Nadpłacono z salda  ]]","v":0},{"$f":"Tabela792[[#Totals],[Wartość  ]]-Tabela791275[[#Totals],[Pozostało do spłaty  ]]","v":0},{"$f":"Tabela792[[#Totals],[Przekazano z salda    ]]+Tabela791275[[#Totals],[Nadpłacono z salda   ]]","v":0},{"$f":"Tabela792[[#Totals],[Wartość   ]]-Tabela791275[[#Totals],[Pozostało do spłaty   ]]","v":0}]